fUSD/lending_fUSD_20240301
["ID","MTS","AMOUNT","RATE_DAILY","PERIOD"]
[315912706,1709279482618,531.4,0.00021917,2]
[315912707,1709279484074,1074.98,0.00021917,2]
[315912708,1709279484713,1129.33,0.00021917,2]
[315912709,1709279485013,1104.94,0.00021917,2]
[315912710,1709279485045,500.0,0.00021917,2]
[315912711,1709279486014,683.62,0.00021917,2]
[315912712,1709279486775,593.43,0.00021917,2]
[315912713,1709279487328,589.63666629,0.00021999,2]
[315912714,1709279488046,992.3,0.00021917,2]
[315912715,1709279488100,321.00994822,0.00021914,2]
[315912716,1709279488537,178.0,0.00021,2]
[315912717,1709279489863,150.01,0.00021999,2]
[315912718,1709279490349,178.0,0.00021548,2]
[315912719,1709279490872,500.0,0.00021917,2]
[315912720,1709279492456,42513.3929,0.00020897,2]
[315912721,1709279492752,764.5,0.00021917,2]
[315912722,1709279493003,500.0,0.00021917,2]
[315912723,1709279493261,2047.31,0.00021917,2]
[315912724,1709279494165,500.0,0.00021917,2]
[315912725,1709279494491,250.68039506,0.00021999,2]
[315912726,1709279494548,500.0,0.00021917,2]
[315912727,1709279494590,3502.68,0.00021917,2]
[315912728,1709279494622,500.0,0.00021917,2]
[315912729,1709279494659,1574.11220791,0.000219,2]
[315912730,1709279495430,5515.3,0.00021917,2]
[315912731,1709279495551,500.0,0.00021917,2]
[315912732,1709279496191,500.0,0.00021917,2]
[315912733,1709279496662,1124.08,0.00021917,2]
[315912734,1709279497035,6729.8906,0.00021418,2]
[315912735,1709279498255,500.0,0.00021917,2]
[315912736,1709279500766,500.0,0.00021917,2]
[315912737,1709279501549,518.78,0.00021917,2]
[315912738,1709279501807,615809.67789941,0.000218,4]
[315912739,1709279501966,500.0,0.00021917,2]
[315912740,1709279503006,531.51,0.00021917,2]
[315912741,1709279503389,39600.2264,0.000216,2]
[315912742,1709279503989,947.5,0.00021917,2]
[315912743,1709279505332,589.63666629,0.00021999,2]
[315912744,1709279506000,500.0,0.00021917,2]
[315912745,1709279506230,500.0,0.00021917,2]
[315912746,1709279507859,2379.42,0.00021917,2]
[315912747,1709279508102,321.00994822,0.00021999,2]
[315912748,1709279508396,520.0,0.0002124,2]
[315912749,1709279509879,1083.57,0.00021917,2]
[315912750,1709279510278,920.9,0.00021917,2]
[315912751,1709279511366,500.0,0.00021917,2]
[315912752,1709279511492,250.68039506,0.00021999,2]
[315912753,1709279513116,500.0,0.00021917,2]
[315912754,1709279513176,500.0,0.00021917,2]
[315912755,1709279513635,500.0,0.00021917,2]
[315912756,1709279513832,1033.54,0.00021917,2]
[315912757,1709279514072,1171.85,0.00021917,2]
[315912758,1709279515045,20552.00442325,0.0001778,2]
[315912759,1709279515725,500.0,0.00021917,2]
[315912760,1709279516907,776.62,0.0002124,2]
[315912761,1709279516986,2028.42,0.00021917,2]
[315912762,1709279517290,161.25,0.00021399,2]
[315912763,1709279517497,161.25,0.000215,2]
[315912764,1709279517697,161.25,0.00021602,2]
[315912765,1709279518122,161.25,0.00021703,2]
[315912766,1709279518322,161.25,0.00021805,2]
[315912767,1709279518534,161.25,0.00021906,2]
[315912768,1709279519348,500.0,0.00021917,2]
[315912769,1709279519817,1877.22,0.00021917,2]
[315912770,1709279519982,1671.52,0.00021917,2]
[315912771,1709279521198,500.0,0.00021917,2]
[315912772,1709279521754,740.79,0.00021917,2]
[315912773,1709279521957,83274.6107,0.000216,2]
[315912774,1709279521989,9942.0,0.00020922,2]
[315912775,1709279522664,500.0,0.00021917,2]
[315912776,1709279525653,164.11,0.00021211,2]
[315912777,1709279525775,590.14,0.00021917,2]
[315912778,1709279525862,500.0,0.00021917,2]
[315912779,1709279526096,1036.62,0.00021917,2]
[315912780,1709279526891,800.0,0.00021973,2]
[315912781,1709279526921,321.00994822,0.00021999,2]
[315912782,1709279528063,500.0,0.00021917,2]
[315912783,1709279528093,365.28414239,0.00021999,2]
[315912784,1709279528937,500.0,0.00021917,2]
[315912785,1709279528967,1000.0,0.00020897,2]
[315912786,1709279529069,500.0,0.00021917,2]
[315912787,1709279529868,1081.84,0.00021917,2]
[315912788,1709279529963,500.0,0.00021917,2]
[315912789,1709279531136,500.0,0.00021917,2]
[315912790,1709279532893,2615.4,0.00021917,2]
[315912791,1709279533479,250.68039506,0.00021999,2]
[315912792,1709279534023,500.0,0.00022,2]
[315912793,1709279534684,500.0,0.00021917,2]
[315912794,1709279534895,500.0,0.00022,2]
[315912795,1709279534966,500.0,0.00021917,2]
[315912796,1709279535064,597.69,0.00021917,2]
[315912797,1709279535289,500.0,0.00022,2]
[315912798,1709279535626,500.0,0.00022,2]
[315912799,1709279535986,500.0,0.00022,2]
[315912800,1709279536206,2257.43,0.00021917,2]
[315912801,1709279536325,500.0,0.00022,2]
[315912802,1709279536926,500.0,0.00021917,2]
[315912803,1709279537174,500.0,0.00022,2]
[315912804,1709279537627,500.0,0.00021917,2]
[315912805,1709279538028,1108.37,0.00021917,2]
[315912806,1709279538063,500.0,0.00022,2]
[315912807,1709279538380,500.0,0.00022,2]
[315912808,1709279538489,1296.39,0.00021917,2]
[315912809,1709279538756,500.0,0.00022,2]
[315912810,1709279540539,500.0,0.00022,2]
[315912811,1709279540864,500.0,0.00022,2]
[315912812,1709279540953,573.72,0.00021917,2]
[315912813,1709279541627,500.0,0.00022,2]
[315912814,1709279541658,917.7908,0.00021817,2]
[315912815,1709279541694,2867.4402263,0.0002199,2]
[315912816,1709279541761,500.0,0.00022,2]
[315912817,1709279541926,500.0,0.00021917,2]
[315912818,1709279541985,500.0,0.00022,2]
[315912819,1709279542227,1708.79,0.00021917,2]
[315912820,1709279542272,500.0,0.00022,2]
[315912821,1709279542891,500.0,0.00022,2]
[315912822,1709279542932,321.00994822,0.00021999,2]
[315912823,1709279543367,500.0,0.00022,2]
[315912824,1709279543748,500.0,0.00022,2]
[315912825,1709279544115,500.0,0.00022,2]
[315912826,1709279544455,500.0,0.00022,2]
[315912827,1709279544807,500.0,0.00022,2]
[315912828,1709279545195,500.0,0.00022,2]
[315912829,1709279545881,840.75,0.00021917,2]
[315912830,1709279545915,1092.57,0.00021917,2]
[315912831,1709279546054,500.0,0.00022,2]
[315912832,1709279546421,500.0,0.00022,2]
[315912833,1709279546749,500.0,0.00022,2]
[315912834,1709279546991,224.10638115,0.00021917,2]
[315912835,1709279547054,500.0,0.00022,2]
[315912836,1709279547408,500.0,0.00022,2]
[315912837,1709279547716,500.0,0.00021917,2]
[315912838,1709279547753,500.0,0.00022,2]
[315912839,1709279548102,500.0,0.00022,2]
[315912840,1709279548443,500.0,0.00022,2]
[315912841,1709279548546,166.69,0.00021843,2]
[315912842,1709279548821,500.0,0.00022,2]
[315912843,1709279549107,500.0,0.00022,2]
[315912844,1709279549194,1105.64,0.00021917,2]
[315912845,1709279549248,495404.43923065,0.00022,4]
[315912846,1709279549489,500.0,0.00022,2]
[315912847,1709279549565,4719.58,0.00021917,2]
[315912848,1709279549816,500.0,0.00022,2]
[315912849,1709279549861,500.0,0.00021917,2]
[315912850,1709279550154,500.0,0.00022,2]
[315912851,1709279550509,500.0,0.00022,2]
[315912852,1709279550833,500.0,0.00022,2]
[315912853,1709279550975,1169.77,0.00021917,2]
[315912854,1709279551215,500.0,0.00022,2]
[315912855,1709279551533,500.0,0.00022,2]
[315912856,1709279551809,738.31,0.00021917,2]
[315912857,1709279551865,500.0,0.00022,2]
[315912858,1709279552206,500.0,0.00022,2]
[315912859,1709279552526,506.88835062,0.00021917,2]
[315912860,1709279552575,500.0,0.00022,2]
[315912861,1709279553238,500.0,0.00022,2]
[315912862,1709279553358,500.0,0.00022,2]
[315912863,1709279553483,500.0,0.00021917,2]
[315912864,1709279553987,250.68039506,0.00021999,2]
[315912865,1709279554168,500.0,0.00022,2]
[315912866,1709279554509,500.0,0.00022,2]
[315912867,1709279554831,746.5,0.00021917,2]
[315912868,1709279554864,1085.49,0.00021917,2]
[315912869,1709279555371,500.0,0.00022,2]
[315912870,1709279555640,639.83,0.00021917,2]
[315912871,1709279555719,500.0,0.00022,2]
[315912872,1709279556074,500.0,0.00022,2]
[315912873,1709279556416,500.0,0.00022,2]
[315912874,1709279556832,500.0,0.00022,2]
[315912875,1709279557184,500.0,0.00022,2]
[315912876,1709279557308,1152.1,0.00021917,2]
[315912877,1709279557358,500.0,0.00021917,2]
[315912878,1709279557543,500.0,0.00022,2]
[315912879,1709279557876,500.0,0.00022,2]
[315912880,1709279558772,500.0,0.00022,2]
[315912881,1709279558810,2178.66,0.00021917,2]
[315912882,1709279559320,500.0,0.00022,2]
[315912883,1709279559426,500.0,0.00022,2]
[315912884,1709279559824,500.0,0.00022,2]
[315912885,1709279560136,500.0,0.00022,2]
[315912886,1709279560342,1485.11,0.00021206,2]
[315912887,1709279560388,813.55,0.00021917,2]
[315912888,1709279560501,500.0,0.00022,2]
[315912889,1709279560849,500.0,0.00022,2]
[315912890,1709279561100,1912.06,0.00021917,2]
[315912891,1709279561400,510.75,0.00021917,2]
[315912892,1709279561449,500.0,0.00021917,2]
[315912893,1709279561728,500.0,0.00021917,2]
[315912894,1709279564153,500.0,0.00021917,2]
[315912895,1709279564725,2815.0117102,0.0002199,2]
[315912896,1709279564817,500.0,0.00021917,2]
[315912897,1709279566199,500.0,0.00022,2]
[315912898,1709279566549,500.0,0.00022,2]
[315912899,1709279566926,500.0,0.00022,2]
[315912900,1709279567242,500.0,0.00022,2]
[315912901,1709279567462,771.97,0.00021917,2]
[315912902,1709279567677,500.0,0.00022,2]
[315912903,1709279568203,500.0,0.00021917,2]
[315912904,1709279568504,500.0,0.00022,2]
[315912905,1709279568831,500.0,0.00022,2]
[315912906,1709279568954,500.0,0.00021917,2]
[315912907,1709279569157,500.0,0.00022,2]
[315912908,1709279569531,500.0,0.00022,2]
[315912909,1709279569894,500.0,0.00022,2]
[315912910,1709279569929,11840.92,0.00021917,2]
[315912911,1709279570200,500.0,0.00022,2]
[315912912,1709279570384,500.0,0.00021917,2]
[315912913,1709279570485,250.68039506,0.00021999,2]
[315912914,1709279570531,500.0,0.00022,2]
[315912915,1709279570642,500.0,0.00021917,2]
[315912916,1709279570873,500.0,0.00022,2]
[315912917,1709279571193,500.0,0.00022,2]
[315912918,1709279571426,500.0,0.00021917,2]
[315912919,1709279571520,500.0,0.00022,2]
[315912920,1709279571788,1128.94,0.00021917,2]
[315912921,1709279571921,500.0,0.00022,2]
[315912922,1709279572015,584.54,0.00021917,2]
[315912923,1709279572228,500.0,0.00022,2]
[315912924,1709279572417,514.69,0.00021917,2]
[315912925,1709279572578,500.0,0.00022,2]
[315912926,1709279572981,500.0,0.00022,2]
[315912927,1709279573350,500.0,0.00022,2]
[315912928,1709279574068,500.0,0.00022,2]
[315912929,1709279574124,500.0,0.00022,2]
[315912930,1709279574409,500.0,0.00022,2]
[315912931,1709279574704,500.0,0.00022,2]
[315912932,1709279575651,1522.48,0.00021917,2]
[315912933,1709279576071,1978.66,0.00021917,2]
[315912934,1709279577080,500.0,0.00021917,2]
[315912935,1709279577233,500.0,0.00022,2]
[315912936,1709279577421,250.0,0.00021206,2]
[315912937,1709279577544,500.0,0.00022,2]
[315912938,1709279577927,500.0,0.00022,2]
[315912939,1709279578243,500.0,0.00022,2]
[315912940,1709279578594,500.0,0.00022,2]
[315912941,1709279578999,613.31,0.00021917,2]
[315912942,1709279579372,1323.22,0.00021917,2]
[315912943,1709279579580,500.0,0.00022,2]
[315912944,1709279579903,500.0,0.00022,2]
[315912945,1709279579972,1443.98,0.00021917,2]
[315912946,1709279580251,500.0,0.00022,2]
[315912947,1709279580853,500.0,0.00021917,2]
[315912948,1709279580894,500.0,0.00022,2]
[315912949,1709279581628,500.0,0.00022,2]
[315912950,1709279581697,500.0,0.00022,2]
[315912951,1709279581920,500.0,0.00022,2]
[315912952,1709279582022,4462.7159281,0.000218,2]
[315912953,1709279582170,500.0,0.00022,2]
[315912954,1709279582201,2447.28,0.00021917,2]
[315912955,1709279582238,514.58,0.00021917,2]
[315912956,1709279582424,500.0,0.00021917,2]
[315912957,1709279583031,500.0,0.00022,2]
[315912958,1709279583277,1815.56,0.00021917,2]
[315912959,1709279583395,500.0,0.00022,2]
[315912960,1709279583704,1315.99,0.00021917,2]
[315912961,1709279583772,500.0,0.00022,2]
[315912962,1709279583986,61981.69,0.00021418,2]
[315912963,1709279584533,500.0,0.00022,2]
[315912964,1709279584566,1000.0,0.00020897,2]
[315912965,1709279584673,500.0,0.00022,2]
[315912966,1709279584719,500.0,0.00021917,2]
[315912967,1709279584750,9469.9204,0.000216,2]
[315912968,1709279584839,500.0,0.00022,2]
[315912969,1709279585325,500.0,0.00022,2]
[315912970,1709279585663,740.02,0.00021917,2]
[315912971,1709279585786,500.0,0.00022,2]
[315912972,1709279585968,500.0,0.00021917,2]
[315912973,1709279586339,500.0,0.00022,2]
[315912974,1709279586741,500.0,0.00022,2]
[315912975,1709279587102,500.0,0.00022,2]
[315912976,1709279587446,500.0,0.00022,2]
[315912977,1709279587790,517.0717154,0.00021917,2]
[315912978,1709279587958,500.0,0.00022,2]
[315912979,1709279588283,500.0,0.00022,2]
[315912980,1709279588581,4892.35,0.00021917,2]
[315912981,1709279588827,500.0,0.00022,2]
[315912982,1709279588996,800.0,0.00021973,2]
[315912983,1709279589034,245000.0,0.000219,2]
[315912984,1709279589066,720.37,0.00021917,2]
[315912985,1709279589098,500.0,0.00021917,2]
[315912986,1709279589164,1505.95,0.00021917,2]
[315912987,1709279589193,500.0,0.00022,2]
[315912988,1709279589881,500.0,0.00021917,2]
[315912989,1709279590502,576.91,0.00021917,2]
[315912990,1709279591659,500.0,0.00021917,2]
[315912991,1709279592470,500.0,0.00021917,2]
[315912992,1709279592500,250.68039506,0.00021999,2]
[315912993,1709279592635,500.0,0.00021917,2]
[315912994,1709279593411,500.0,0.00021917,2]
[315912995,1709279594027,500.0,0.00021917,2]
[315912996,1709279594202,715.54,0.00021917,2]
[315912997,1709279594394,1046.84,0.00021917,2]
[315912998,1709279595041,1144.14160374,0.00021814,2]
[315912999,1709279595081,1229.10752021,0.00021652,2]
[315913000,1709279595189,500.0,0.00021917,2]
[315913001,1709279595786,500.0,0.00021917,2]
[315913002,1709279595955,4740.51375799,0.0001305,2]
[315913003,1709279596086,200.0,0.00021918,2]
[315913004,1709279597211,500.0,0.00021917,2]
[315913005,1709279597367,1220.54,0.00021917,2]
[315913006,1709279597798,1618.28,0.00021917,2]
[315913007,1709279598063,166.33083102,0.00021917,2]
[315913008,1709279599860,3705.17,0.00021917,2]
[315913009,1709279600293,500.0,0.00021917,2]
[315913010,1709279600504,915.59,0.00021917,2]
[315913011,1709279601280,660.82,0.00021917,2]
[315913012,1709279602915,1046.47,0.00021917,2]
[315913013,1709279603385,500.0,0.00021917,2]
[315913014,1709279603970,2416.88,0.00021917,2]
[315913015,1709279604011,500.0,0.00021917,2]
[315913016,1709279604217,500.0,0.00021917,2]
[315913017,1709279604551,800.0,0.00021918,2]
[315913018,1709279607364,500.0,0.00021917,2]
[315913019,1709279609393,609.04,0.00021917,2]
[315913020,1709279609538,2500.14,0.00021917,2]
[315913021,1709279609825,1597.41,0.00021917,2]
[315913022,1709279610204,1000.0,0.00021917,7]
[315913023,1709279611968,607.92,0.00021917,2]
[315913024,1709279612533,500.0,0.00021917,2]
[315913025,1709279612859,733.52,0.00021917,2]
[315913026,1709279614602,1386.06,0.00021917,2]
[315913027,1709279615077,500.0,0.00021917,2]
[315913028,1709279616504,536.89,0.00021917,2]
[315913029,1709279618345,500.0,0.00021917,2]
[315913030,1709279618981,939.66,0.00021917,2]
[315913031,1709279619208,380.11038796,0.00021999,2]
[315913032,1709279619555,513.73866921,0.00021,2]
[315913033,1709279619774,1598.62,0.00021917,2]
[315913034,1709279619997,500.0,0.00021917,2]
[315913035,1709279620936,200.0,0.00021824,2]
[315913036,1709279621272,150.0,0.000212,2]
[315913037,1709279621431,321.00994822,0.00021917,2]
[315913038,1709279622140,500.0,0.00021917,2]
[315913039,1709279622188,259.9,0.00021,2]
[315913040,1709279622885,500.0,0.00021917,2]
[315913041,1709279623054,940.79,0.00021917,2]
[315913042,1709279623624,500.0,0.00021917,2]
[315913043,1709279624075,259.9,0.00021137,2]
[315913044,1709279624729,1106.17,0.00021917,2]
[315913045,1709279624793,1995.7,0.00021917,2]
[315913046,1709279625505,259.9,0.00021274,2]
[315913047,1709279625995,500.0,0.00021917,2]
[315913048,1709279626360,632.87,0.00021917,2]
[315913049,1709279626981,259.9,0.00021411,2]
[315913050,1709279627577,512.15108447,0.00021917,2]
[315913051,1709279628756,500.0,0.00021917,2]
[315913052,1709279628854,394.00948362,0.00021548,2]
[315913053,1709279629130,853.45,0.00021917,2]
[315913054,1709279629862,730.0,0.00021917,2]
[315913055,1709279632383,1299.81,0.00021917,2]
[315913056,1709279632509,3137.16,0.00021917,2]
[315913057,1709279633806,500.0,0.00021917,2]
[315913058,1709279633941,4275.43,0.00021918,2]
[315913059,1709279634262,500.0,0.00021917,2]
[315913060,1709279634810,500.0,0.00021824,2]
[315913061,1709279635216,633.02,0.00021917,2]
[315913062,1709279635426,321.00994822,0.00021917,2]
[315913063,1709279635574,500.0,0.00021917,2]
[315913064,1709279636056,4122.65,0.00021917,2]
[315913065,1709279637725,500.0,0.00021917,2]
[315913066,1709279638358,500.0,0.00021917,2]
[315913067,1709279638703,742.98,0.00021917,2]
[315913068,1709279638770,500.0,0.00021917,2]
[315913069,1709279639548,2539.46,0.00021917,2]
[315913070,1709279641911,2500.0,0.000219,2]
[315913071,1709279643824,500.0,0.00021917,2]
[315913072,1709279644205,1468.14099739,0.00021999,2]
[315913073,1709279644397,500.0,0.00021917,2]
[315913074,1709279645133,4692.23,0.00021917,2]
[315913075,1709279645186,1890.61,0.00021917,2]
[315913076,1709279645440,1671.68,0.00021917,2]
[315913077,1709279648615,-500.0,0.00021917,2]
[315913078,1709279648644,-9850.21,0.00021917,2]
[315913079,1709279648672,-800.0,0.00021973,2]
[315913080,1709279648699,-739891.35767716,0.00022,2]
[315913081,1709279648726,-102975.23484177,0.00022,2]
[315913082,1709279648752,-49178.41514559,0.00022,2]
[315913083,1709279648778,-345903.62249937,0.00022,2]
[315913084,1709279648803,-151.0,0.00022,7]
[315913085,1709279648828,-151.0,0.00022,7]
[315913086,1709279648852,-152.017602,0.00022,7]
[315913087,1709279648876,-151.0,0.00022,7]
[315913088,1709279648902,-151.0,0.00022,7]
[315913089,1709279648927,-151.0,0.00022,7]
[315913090,1709279648953,-203.311255,0.00022,7]
[315913091,1709279648977,-203.311255,0.00022,7]
[315913092,1709279649004,-203.311255,0.00022,7]
[315913093,1709279649029,-203.311255,0.00022,7]
[315913094,1709279649053,-203.311255,0.00022,7]
[315913095,1709279649083,-203.311255,0.00022,7]
[315913096,1709279649109,-207.016081,0.00022,7]
[315913097,1709279649133,-207.016081,0.00022,7]
[315913098,1709279649159,-207.016081,0.00022,7]
[315913099,1709279649184,-207.016081,0.00022,7]
[315913100,1709279649212,-207.016081,0.00022,7]
[315913101,1709279649241,-207.016081,0.00022,7]
[315913102,1709279649268,-230.902294,0.00022,2]
[315913103,1709279649295,-230.902294,0.00022,2]
[315913104,1709279649320,-230.902294,0.00022,2]
[315913105,1709279649827,-230.902294,0.00022,2]
[315913106,1709279649851,-230.902294,0.00022,2]
[315913107,1709279649874,-230.902294,0.00022,2]
[315913108,1709279649897,-151.0,0.00022,7]
[315913109,1709279649921,-151.0,0.00022,7]
[315913110,1709279649944,-151.0,0.00022,7]
[315913111,1709279649967,-151.0,0.00022,7]
[315913112,1709279649991,-151.0,0.00022,7]
[315913113,1709279650013,-151.0,0.00022,7]
[315913114,1709279650036,-151.0,0.00022,7]
[315913115,1709279650058,-151.0,0.00022,7]
[315913116,1709279650082,-151.0,0.00022,7]
[315913117,1709279650104,-151.0,0.00022,7]
[315913118,1709279650127,-151.0,0.00022,7]
[315913119,1709279650150,-2685.95,0.00022,2]
[315913120,1709279650183,-1828.27,0.00022,2]
[315913121,1709279650211,-75937.99,0.00022,2]
[315913122,1709279650233,-839.41668859,0.00022,2]
[315913123,1709279650257,-1811.18,0.00022,2]
[315913124,1709279650280,-87543.67,0.00022,2]
[315913125,1709279650305,-1826.07,0.00022,2]
[315913126,1709279650327,-21175.20150682,0.00022,2]
[315913127,1709279650351,-2678.4305833,0.00022,2]
[315913128,1709279650373,-700.0,0.00022,2]
[315913129,1709279650412,-4000.0,0.00022,2]
[315913130,1709279650437,-21695.6871753,0.00022005,2]
[315913131,1709279650467,-161.25,0.00022007,2]
[315913132,1709279650501,-1270.14513798,0.0002202,2]
[315913133,1709279650526,-1269.61,0.00022033,2]
[315913134,1709279650550,-192.52,0.00022033,2]
[315913135,1709279650574,-222.7,0.0002204,2]
[315913136,1709279650599,-152.56,0.00022047,2]
[315913137,1709279650623,-23625.9,0.00022064,2]
[315913138,1709279650650,-155.34,0.00022064,2]
[315913139,1709279650675,-310.09241579,0.00022096,2]
[315913140,1709279650702,-161.25,0.00022109,2]
[315913141,1709279650725,-222.36958644,0.0002211,2]
[315913142,1709279650761,-9058.20356252,0.00022118,2]
[315913143,1709279650792,-1269.61,0.00022149,2]
[315913144,1709279650822,-192.52,0.00022149,2]
[315913145,1709279650849,-152.56,0.00022176,2]
[315913146,1709279650875,-500.0,0.00022191,2]
[315913147,1709279650904,-443.0826646,0.00022191,2]
[315913148,1709279650929,-500.0,0.00022191,2]
[315913149,1709279650956,-500.0,0.00022191,2]
[315913150,1709279650983,-500.0,0.00022191,2]
[315913151,1709279651008,-500.0,0.00022191,2]
[315913152,1709279651033,-500.0,0.00022191,2]
[315913153,1709279651057,-500.0,0.00022191,2]
[315913154,1709279651082,-500.0,0.00022191,2]
[315913155,1709279651108,-500.0,0.00022191,2]
[315913156,1709279651132,-500.0,0.00022191,2]
[315913157,1709279651157,-500.0,0.00022191,2]
[315913158,1709279651181,-500.0,0.00022191,2]
[315913159,1709279651205,-500.0,0.00022191,2]
[315913160,1709279651230,-500.0,0.00022191,2]
[315913161,1709279651253,-538.35834671,0.00022191,2]
[315913162,1709279651276,-500.0,0.00022191,2]
[315913163,1709279651300,-500.0,0.00022191,2]
[315913164,1709279651324,-500.0,0.00022191,2]
[315913165,1709279651347,-500.0,0.00022191,2]
[315913166,1709279651371,-500.0,0.00022191,2]
[315913167,1709279651395,-500.0,0.00022191,2]
[315913168,1709279651418,-500.0,0.00022191,2]
[315913169,1709279651442,-892.46,0.00022191,2]
[315913170,1709279651467,-500.0,0.00022191,2]
[315913171,1709279651493,-500.0,0.00022191,2]
[315913172,1709279651518,-500.0,0.00022191,2]
[315913173,1709279651544,-500.0,0.00022191,2]
[315913174,1709279651571,-500.0,0.00022191,2]
[315913175,1709279651597,-500.0,0.00022191,2]
[315913176,1709279651624,-500.0,0.00022191,2]
[315913177,1709279651651,-500.0,0.00022191,2]
[315913178,1709279651676,-500.0,0.00022191,2]
[315913179,1709279651703,-500.0,0.00022191,2]
[315913180,1709279651728,-500.0,0.00022191,2]
[315913181,1709279651753,-500.0,0.00022191,2]
[315913182,1709279651779,-500.0,0.00022191,2]
[315913183,1709279651805,-500.0,0.00022191,2]
[315913184,1709279651834,-500.0,0.00022191,2]
[315913185,1709279651859,-500.0,0.00022191,2]
[315913186,1709279651886,-500.0,0.00022191,2]
[315913187,1709279651916,-500.0,0.00022191,2]
[315913188,1709279651940,-159.65581057,0.00022191,2]
[315913189,1709279651967,-500.0,0.00022191,2]
[315913190,1709279651993,-500.0,0.00022191,2]
[315913191,1709279652018,-500.0,0.00022191,2]
[315913192,1709279652043,-536.96,0.00022191,2]
[315913193,1709279652066,-500.0,0.00022191,2]
[315913194,1709279652091,-564.17306162,0.00022191,2]
[315913195,1709279652116,-500.0,0.00022191,2]
[315913196,1709279652140,-500.0,0.00022191,2]
[315913197,1709279652164,-500.0,0.00022191,2]
[315913198,1709279652188,-500.0,0.00022191,2]
[315913199,1709279652214,-500.0,0.00022191,2]
[315913200,1709279652238,-500.0,0.00022191,2]
[315913201,1709279652338,-500.0,0.00022191,2]
[315913202,1709279652363,-500.0,0.00022191,2]
[315913203,1709279652387,-500.0,0.00022191,2]
[315913204,1709279652412,-500.0,0.00022191,2]
[315913205,1709279652436,-184.99073331,0.00022191,2]